fUST/lending_fUST_20260118
["ID","MTS","AMOUNT","RATE_DAILY","PERIOD"]
[402648291,1768744265645,-151.0,0.00016438,2]
[402648292,1768744265656,-151.0,0.00016438,2]
[402648293,1768744265667,-317.901714,0.00016438,2]
[402648294,1768744265679,-163.122527,0.00016438,2]
[402648295,1768744265689,-151.0,0.00016438,2]
[402648296,1768744265700,-151.0,0.00016438,2]
[402648297,1768744265711,-317.901714,0.00016438,2]
[402648298,1768744265721,-151.0,0.00016438,2]
[402648299,1768744265731,-317.901714,0.00016438,2]
[402648300,1768744265740,-151.0,0.00016438,2]
[402648301,1768744265750,-161.490931,0.00016438,2]
[402648302,1768744265759,-317.901714,0.00016438,2]
[402648303,1768744265768,-151.0,0.00016438,2]
[402648304,1768744265778,-317.901714,0.00016438,2]
[402648305,1768744265787,-151.0,0.00016438,2]
[402648306,1768744265796,-317.901714,0.00016438,2]
[402648307,1768744265805,-249.050747,0.00016438,2]
[402648308,1768744265815,-317.901714,0.00016438,2]
[402648309,1768744265824,-317.901714,0.00016438,2]
[402648310,1768744265833,-317.901714,0.00016438,2]
[402648311,1768744265843,-317.901714,0.00016438,2]
[402648312,1768744265852,-317.901714,0.00016438,2]
[402648313,1768744265862,-317.901714,0.00016438,2]
[402648314,1768744265871,-3000.0,0.00016438,2]
[402648315,1768744265880,-3000.0,0.0001644,2]
[402648316,1768744265891,-3000.0,0.0001645,2]
[402648317,1768744265900,-729.0,0.00016452,2]
[402648318,1768744265910,-729.0,0.00016459,2]
[402648319,1768744265919,-729.0,0.00016459,2]
[402648320,1768744265929,-3000.0,0.0001646,2]
[402648321,1768744265939,-3000.0,0.0001647,2]
[402648322,1768744265948,-200.21981794,0.00016473,2]
[402648323,1768744265957,-3000.0,0.0001648,2]
[402648324,1768744265966,-867.15165651,0.0001648,20]
[402648325,1768744265976,-3000.0,0.0001649,2]
[402648326,1768744265985,-3000.0,0.000165,2]
[402648327,1768744265995,-160.0,0.00016509,2]
[402648328,1768744266004,-3000.0,0.0001651,2]
[402648329,1768744266013,-3000.0,0.0001652,2]
[402648330,1768744266023,-194.46611918,0.00016527,17]
[402648331,1768744266032,-724.0,0.00016528,2]
[402648332,1768744266042,-729.0,0.00016528,2]
[402648333,1768744266051,-729.0,0.00016528,2]
[402648334,1768744266061,-3000.0,0.0001653,2]
[402648335,1768744266070,-2000.0,0.00016534,7]
[402648336,1768744266079,-3000.0,0.0001654,2]
[402648337,1768744266088,-654.89431956,0.00016546,17]
[402648338,1768744266098,-209.18999324,0.00016546,17]
[402648339,1768744266107,-3000.0,0.0001655,2]
[402648340,1768744266116,-3000.0,0.0001656,2]
[402648341,1768744266125,-3008.44392205,0.0001656,2]
[402648342,1768744266135,-1595.0,0.00016565,2]
[402648343,1768744266144,-3000.0,0.0001657,2]
[402648344,1768744266154,-4426.366979,0.0001658,2]
[402648345,1768744266163,-977.22759688,0.00016583,24]
[402648346,1768744266172,-835.11265005,0.00016617,20]
[402648347,1768744266183,-729.0,0.00016626,2]
[402648348,1768744266192,-3875.0,0.00016629,2]
[402648349,1768744266202,-729.0,0.00016631,2]
[402648350,1768744266211,-729.0,0.00016663,2]
[402648351,1768744266224,-729.0,0.00016691,2]
[402648352,1768744266233,-1032.1078468,0.000167,2]
[402648353,1768744266245,-729.0,0.00016711,2]
[402648354,1768744266254,-683.6,0.00016712,2]
[402648355,1768744266264,-500.0,0.00016712,2]
[402648356,1768744266273,-1000.0,0.00016772,2]
[402648357,1768744266283,-3326.07919052,0.00016801,2]
[402648358,1768744266293,-688.49839244,0.00016801,2]
[402648359,1768744266303,-153.0,0.00016842,2]
[402648360,1768744266312,-306.7724099,0.00016842,2]
[402648361,1768744266321,-729.0,0.00016848,2]
[402648362,1768744266330,-3875.0,0.00016848,2]
[402648363,1768744266341,-2000.0,0.00016849,7]
[402648364,1768744266351,-3875.0,0.00016854,2]
[402648365,1768744266360,-977.22759688,0.00016881,28]
[402648366,1768744266370,-1500.87,0.000169,3]
[402648367,1768744266379,-835.11265005,0.00016901,24]
[402648368,1768744266389,-729.0,0.0001694,2]
[402648369,1768744266398,-373.61,0.0001694,30]
[402648370,1768744266408,-729.0,0.00016951,2]
[402648371,1768744266417,-3875.0,0.00016951,2]
[402648372,1768744266427,-867.15165651,0.00016978,22]
[402648373,1768744266437,-683.6,0.00016986,2]
[402648374,1768744266446,-500.0,0.00016986,2]
[402648375,1768744266455,-3500.0,0.00016986,2]
[402648376,1768744266464,-174.50492802,0.00016987,23]
[402648377,1768744266474,-201.98350775,0.00016999,2]
[402648378,1768744266484,-7009.0,0.00017,2]
[402648379,1768744266494,-31711.68323709,0.00017,2]
[402648380,1768744266504,-200.0,0.00017,2]
[402648381,1768744266514,-200.0982317,0.00017,2]
[402648382,1768744266524,-174.504928,0.00017004,23]
[402648383,1768744266535,-68375.27910713,0.0001701,3]
[402648384,1768744266544,-729.0,0.0001702,2]
[402648385,1768744266554,-3875.0,0.00017026,2]
[402648386,1768744266563,-160.0,0.00017092,2]
[402648387,1768744266573,-3875.0,0.00017102,2]
[402648388,1768744266582,-209.18999324,0.00017118,25]
[402648389,1768744266591,-654.89431956,0.00017118,25]
[402648390,1768744266600,-13513.32532638,0.00017123,2]
[402648391,1768744266609,-3875.0,0.00017149,2]
[402648392,1768744266619,-2000.0,0.00017164,7]
[402648393,1768744266629,-746.0,0.00017168,2]
[402648394,1768744266642,-728.0,0.00017174,2]
[402648395,1768744266651,-977.22759688,0.00017178,31]
[402648396,1768744266661,-604.70073054,0.0001718,2]
[402648397,1768744266670,-835.11265005,0.00017184,28]
[402648398,1768744266681,-32114.0,0.000172,2]
[402648399,1768744266691,-3875.0,0.00017205,2]
[402648400,1768744266701,-2148.0,0.00017211,2]
[402648401,1768744266710,-1367.0,0.00017211,2]
[402648402,1768744266719,-629.0,0.00017211,2]
[402648403,1768744266729,-683.6,0.0001726,2]
[402648404,1768744266738,-500.0,0.0001726,2]
[402648405,1768744266747,-166.0,0.00017266,2]
[402648406,1768744266757,-3000.0,0.00017278,7]
[402648407,1768744266767,-3875.0,0.0001734,2]
[402648408,1768744266777,-160.0,0.0001734,2]
[402648409,1768744266787,-3449.14412057,0.00017349,2]
[402648410,1768744266796,-713.97283296,0.00017349,2]
[402648411,1768744266806,-729.0,0.00017351,2]
[402648412,1768744266815,-3875.0,0.00017351,2]
[402648413,1768744266824,-20000.0,0.000174,2]
[402648414,1768744266833,-5000.0,0.00017412,2]
[402648415,1768744266843,-160.0,0.00017434,2]
[402648416,1768744266852,-600.0,0.00017435,2]
[402648417,1768744266862,-2258.0,0.00017459,2]
[402648418,1768744266872,-835.11265005,0.00017467,31]
[402648419,1768744266881,-977.22759688,0.00017475,35]
[402648420,1768744266891,-867.15165651,0.00017477,23]
[402648421,1768744266901,-2000.0,0.00017479,7]
[402648422,1768744266910,-729.0,0.00017494,2]
[402648423,1768744266919,-20000.0,0.000175,2]
[402648424,1768744266928,-600.0,0.00017517,2]
[402648425,1768744266938,-729.0,0.00017525,2]
[402648426,1768744266947,-683.6,0.00017534,2]
[402648427,1768744266957,-500.0,0.00017534,2]
[402648428,1768744266966,-4000.0,0.00017534,2]
[402648429,1768744266975,-729.0,0.00017586,2]
[402648430,1768744266984,-600.0,0.0001759,2]
[402648431,1768744266994,-729.0,0.00017591,2]
[402648432,1768744267003,-500.0,0.00017616,2]
[402648433,1768744267012,-3875.0,0.00017651,2]
[402648434,1768744267022,-194.46611918,0.00017655,32]
[402648435,1768744267031,-2000.0,0.00017666,2]
[402648436,1768744267040,-209.18999324,0.00017691,32]
[402648437,1768744267052,-654.89431956,0.00017691,32]
[402648438,1768744267063,-729.0,0.00017695,2]
[402648439,1768744267073,-500.0,0.000177,2]
[402648440,1768744267083,-500.0,0.00017708,2]
[402648441,1768744267093,-500.0,0.00017722,2]
[402648442,1768744267102,-276.0,0.00017739,2]
[402648443,1768744267111,-835.11265005,0.00017751,35]
[402648444,1768744267120,-500.0,0.00017756,2]
[402648445,1768744267129,-38000.0,0.00017764,3]
[402648446,1768744267139,-977.22759688,0.00017772,39]
[402648447,1768744267148,-38000.0,0.00017773,3]
[402648448,1768744267158,-38000.0,0.00017782,3]
[402648449,1768744267168,-3875.0,0.00017789,2]
[402648450,1768744267178,-3875.0,0.00017789,2]
[402648451,1768744267188,-38000.0,0.0001779,3]
[402648452,1768744267198,-2000.0,0.00017795,7]
[402648453,1768744267207,-38000.0,0.00017799,3]
[402648454,1768744267216,-38000.0,0.00017799,3]
[402648455,1768744267226,-38000.0,0.00017799,3]
[402648456,1768744267236,-32201.17759267,0.000178,3]
[402648457,1768744267245,-38000.0,0.00017808,3]
[402648458,1768744267255,-38000.0,0.00017808,3]
[402648459,1768744267265,-38000.0,0.00017808,3]
[402648460,1768744267274,-38000.0,0.00017808,3]
[402648461,1768744267283,-683.6,0.00017808,2]
[402648462,1768744267294,-500.0,0.00017808,2]
[402648463,1768744267303,-812.19065507,0.00017809,2]
[402648464,1768744267312,-3576.76245303,0.00017897,2]
[402648465,1768744267322,-600.0,0.00017906,2]
[402648466,1768744267331,-500.0,0.00017911,2]
[402648467,1768744267340,-337.0,0.00017948,2]
[402648468,1768744267350,-600.0,0.00017968,2]
[402648469,1768744267360,-500.0,0.00017973,2]
[402648470,1768744267369,-867.05165652,0.00017975,24]
[402648471,1768744267378,-162.0,0.0001798,2]
[402648472,1768744267387,-1000.0,0.00018,18]
[402648473,1768744267396,-9795.95874488,0.00018,2]
[402648474,1768744267405,-485.00495456,0.00018,2]
[402648475,1768744267415,-200.0,0.00018012,120]
[402648476,1768744267424,-835.11265005,0.00018034,39]
[402648477,1768744267433,-977.22759688,0.0001807,42]
[402648478,1768744267443,-508.0,0.00018071,3]
[402648479,1768744267451,-38000.0,0.00018073,3]
[402648480,1768744267460,-38000.0,0.00018082,3]
[402648481,1768744267469,-683.6,0.00018082,2]
[402648482,1768744267479,-500.0,0.00018082,2]
[402648483,1768744267489,-2031.52330925,0.00018082,2]
[402648484,1768744267499,-2000.0,0.0001811,7]
[402648485,1768744267508,-404.0,0.00018135,2]
[402648486,1768744267518,-600.0,0.00018144,2]
[402648487,1768744267528,-902.12624676,0.00018182,2]
[402648488,1768744267539,-500.0,0.00018249,2]
[402648489,1768744267550,-654.89431956,0.00018264,40]
[402648490,1768744267560,-209.18999324,0.00018264,40]
[402648491,1768744267570,-600.0,0.00018285,2]
[402648492,1768744267580,-160.0,0.000183,2]
[402648493,1768744267589,-835.11265005,0.00018318,42]
[402648494,1768744267598,-595.94251953,0.00018356,3]
[402648495,1768744267608,-683.6,0.00018356,2]
[402648496,1768744267618,-500.0,0.00018356,2]
[402648497,1768744267627,-250.0,0.00018356,2]
[402648498,1768744267640,-977.22759688,0.00018367,46]
[402648499,1768744267650,-3000.0,0.00018374,7]
[402648500,1768744267660,-2000.0,0.00018425,7]
[402648501,1768744267669,-3709.10266379,0.00018445,2]
[402648502,1768744267679,-309.0,0.00018453,5]
[402648503,1768744267688,-2652.0,0.00018453,5]
[402648504,1768744267697,-257.0,0.00018453,5]
[402648505,1768744267707,-600.0,0.0001847,2]
[402648506,1768744267716,-500.0,0.00018489,2]
[402648507,1768744267725,-493.915259,0.00018493,2]
[402648508,1768744267850,-600.0,0.00018497,2]
[402648509,1768744267877,-174.50492802,0.00018574,45]
[402648510,1768744267886,-835.11265005,0.00018601,46]
[402648511,1768744267898,-174.504928,0.00018608,45]
[402648512,1768744267908,-500.0,0.0001863,3]
[402648513,1768744267919,-683.6,0.0001863,2]
[402648514,1768744267929,-500.0,0.0001863,2]
[402648515,1768744267939,-977.22759688,0.00018664,50]
[402648516,1768744267948,-5000.0,0.00018718,2]
[402648517,1768744267957,-5000.0,0.00018718,2]
[402648518,1768744267967,-2000.0,0.0001874,7]
[402648519,1768744267976,-8775.9118974,0.00018742,2]
[402648520,1768744267985,-5000.0,0.00018742,2]
[402648521,1768744267995,-5000.0,0.00018742,2]
[402648522,1768744268004,-5000.0,0.00018742,2]
[402648523,1768744268013,-5000.0,0.00018742,2]
[402648524,1768744268023,-600.0,0.00018746,2]
[402648525,1768744268032,-5000.0,0.00018774,2]
[402648526,1768744268042,-5000.0,0.00018774,2]
[402648527,1768744268052,-194.46611918,0.00018782,48]
[402648528,1768744268063,-209.18999324,0.00018837,48]
[402648529,1768744268073,-654.89431956,0.00018837,48]
[402648530,1768744268083,-5000.0,0.00018863,2]
[402648531,1768744268093,-330.0,0.00018877,2]
[402648532,1768744268103,-835.11265005,0.00018885,50]
[402648533,1768744268113,-600.0,0.00018888,2]
[402648534,1768744268123,-830.91885543,0.000189,30]
[402648535,1768744268133,-303.10001603,0.000189,2]
[402648536,1768744268143,-500.0,0.00018904,3]
[402648537,1768744268152,-683.6,0.00018904,2]
[402648538,1768744268161,-500.0,0.00018904,2]
[402648539,1768744268170,-201.20375973,0.00018904,2]
[402648540,1768744268179,-977.22759688,0.00018961,54]
[402648541,1768744268189,-3846.33946235,0.00018993,2]
[402648542,1768744268199,-3610.17582563,0.00019,2]
[402648543,1768744268208,-154811.53293138,0.00019,2]
[402648544,1768744268219,-2000.0,0.00019055,7]
[402648545,1768744268228,-200.0,0.0001907,120]
[402648546,1768744268238,-303.10001603,0.00019089,2]
[402648547,1768744268248,-835.11265005,0.00019168,54]
[402648548,1768744268257,-500.0,0.00019178,3]
[402648549,1768744268268,-600.0,0.00019178,2]
[402648550,1768744268278,-683.6,0.00019178,2]
[402648551,1768744268288,-500.0,0.00019178,2]
[402648552,1768744268297,-5000.0,0.00019178,2]
[402648553,1768744268307,-5000.0,0.00019178,2]
[402648554,1768744268317,-5000.0,0.00019178,2]
[402648555,1768744268326,-5000.0,0.00019178,2]
[402648556,1768744268339,-5000.0,0.00019178,2]
[402648557,1768744268355,-5000.0,0.00019178,2]
[402648558,1768744268364,-5000.0,0.00019178,2]
[402648559,1768744268374,-5000.0,0.00019178,2]
[402648560,1768744268383,-5000.0,0.00019178,2]
[402648561,1768744268393,-5000.0,0.00019178,2]
[402648562,1768744268402,-5000.0,0.00019178,2]
[402648563,1768744268412,-5000.0,0.00019178,2]
[402648564,1768744268421,-5000.0,0.00019178,2]
[402648565,1768744268431,-5000.0,0.00019178,2]
[402648566,1768744268440,-5000.0,0.00019178,2]
[402648567,1768744268449,-5000.0,0.00019178,2]
[402648568,1768744268459,-5000.0,0.00019178,2]
[402648569,1768744268469,-5000.0,0.00019178,2]
[402648570,1768744268478,-2010.87928147,0.00019178,2]
[402648571,1768744268488,-151.0,0.00019178,2]
[402648572,1768744268497,-243.48264022,0.00019178,2]
[402648573,1768744268507,-167.87,0.000192,2]
[402648574,1768744268516,-345.4,0.000192,2]
[402648575,1768744268525,-350.51,0.000192,2]
[402648576,1768744268535,-6498.68,0.000192,2]
[402648577,1768744268545,-36319.38,0.000192,2]
[402648578,1768744268555,-1570.0,0.00019205,2]
[402648579,1768744268564,-500.0,0.00019235,2]
[402648580,1768744268574,-977.22759688,0.00019258,57]
[402648581,1768744268584,-600.0,0.00019263,2]
[402648582,1768744268594,-303.10001603,0.00019278,2]
[402648583,1768744268605,-239.60081701,0.00019345,56]
[402648584,1768744268614,-154.17015447,0.00019367,56]
[402648585,1768744268624,-600.0,0.00019369,2]
[402648586,1768744268636,-2000.0,0.0001937,7]
[402648587,1768744268645,-213.53874678,0.0001941,56]
[402648588,1768744268655,-164.56938161,0.0001941,56]
[402648589,1768744268664,-654.89431956,0.0001941,56]
[402648590,1768744268675,-209.18999324,0.0001941,56]
[402648591,1768744268684,-278.37088334,0.0001941,56]
[402648592,1768744268694,-218.2981065,0.0001941,56]
[402648593,1768744268704,-600.0,0.00019417,2]
[402648594,1768744268714,-500.0,0.0001944,2]
[402648595,1768744268723,-835.11265005,0.00019452,57]
[402648596,1768744268732,-500.0,0.00019452,3]
[402648597,1768744268742,-683.6,0.00019452,2]
[402648598,1768744268751,-500.0,0.00019452,2]
[402648599,1768744268761,-303.10001603,0.00019467,2]
[402648600,1768744268771,-3000.0,0.0001947,7]
[402648601,1768744268780,-5136.0,0.000195,2]
[402648602,1768744268790,-13513.32532638,0.00019503,2]
[402648603,1768744268800,-1264.41761693,0.00019507,2]
[402648604,1768744268810,-150.1,0.00019507,2]
[402648605,1768744268819,-188.28256774,0.00019507,2]
[402648606,1768744268829,-977.22759688,0.00019556,61]
[402648607,1768744268839,-600.0,0.00019602,2]
[402648608,1768744268849,-303.10001603,0.00019656,2]
[402648609,1768744268859,-2000.0,0.00019685,7]
[402648610,1768744268868,-500.0,0.00019686,2]
[402648611,1768744268877,-187.2597717,0.00019688,2]
[402648612,1768744268887,-600.0,0.00019694,2]
[402648613,1768744268897,-612.29092568,0.00019726,3]
[402648614,1768744268907,-500.0,0.00019726,2]
[402648615,1768744268916,-835.11265005,0.00019735,61]
[402648616,1768744268926,-500.0,0.00019752,2]
[402648617,1768744268936,-897.18735153,0.00019809,2]
[402648618,1768744268946,-454.65002405,0.00019845,4]
[402648619,1768744268955,-977.22759688,0.00019853,65]
[402648620,1768744268965,-600.0,0.00019898,2]
[402648621,1768744268975,-6498.68,0.000199,2]
[402648622,1768744268984,-36319.38,0.000199,2]
[402648623,1768744268994,-1601.064488,0.000199,5]
[402648624,1768744269003,-194.46611918,0.00019909,63]
[402648625,1768744269013,-1000.0,0.0001992,5]
[402648626,1768744269022,-1000.0,0.0001994,5]
[402648627,1768744269032,-2452.0,0.0001995,2]
[402648628,1768744269041,-1000.0,0.0001996,5]
[402648629,1768744269052,-1000.0,0.0001998,5]
[402648630,1768744269065,-654.89431956,0.00019983,63]
[402648631,1768744269075,-209.18999324,0.00019983,63]
[402648632,1768744269085,-500.0,0.0002,2]
[402648633,1768744269095,-750.0,0.0002,2]
[402648634,1768744269105,-684.20976053,0.0002,2]
[402648635,1768744269116,-14709.85509998,0.0002,2]
[402648636,1768744269126,-371.82204951,0.0002,2]
[402648637,1768744269135,-892.51515988,0.0002,2]
[402648638,1768744269145,-78348.04830412,0.0002,2]
[402648639,1768744269155,-202.85119688,0.0002,2]
[402648640,1768744269165,-504.57716948,0.0002,2]
[402648641,1768744269174,-17954.7759016,0.0002,2]
[402648642,1768744269184,-154.823965,0.0002,2]
[402648643,1768744269193,-669.0,0.0002,7]
[402648644,1768744269204,-205.37618932,0.0002,2]
[402648645,1768744269214,-194.68749896,0.0002,2]
[402648646,1768744269223,-9644.86788302,0.0002,3]
[402648647,1768744269232,-6769.93561677,0.0002,2]
[402648648,1768744269243,-151.63444429,0.0002,2]
[402648649,1768744269253,-5000.0,0.0002,2]
[402648650,1768744269262,-5000.0,0.0002,2]
[402648651,1768744269272,-3335.0,0.0002,2]
[402648652,1768744269282,-3468.0,0.0002,2]
[402648653,1768744269291,-1015.0,0.0002,2]
[402648654,1768744269300,-350.51,0.0002,2]
[402648655,1768744269309,-345.4,0.0002,2]
[402648656,1768744269319,-254.1059467,0.0002,21]
[402648657,1768744269328,-23000.0,0.0002,2]
[402648658,1768744269338,-6000.0,0.0002,2]
[402648659,1768744269347,-218209.69158984,0.0002,2]
[402648660,1768744269356,-778.62554217,0.0002,3]
[402648661,1768744269365,-82681.0,0.0002,7]
[402648662,1768744269374,-500.0,0.0002,15]
[402648663,1768744269384,-1000.9,0.0002,30]
[402648664,1768744269393,-1000.0,0.0002,5]
[402648665,1768744269403,-300.0,0.0002,2]
[402648666,1768744269413,-1767.872385,0.0002,2]
[402648667,1768744269422,-250.0,0.0002,10]
[402648668,1768744269432,-835.11265005,0.00020018,65]
[402648669,1768744269443,-454.65002405,0.00020034,4]
[402648670,1768744269452,-378.67,0.000201,2]
[402648671,1768744269463,-250.0,0.000201,10]
[402648672,1768744269474,-600.0,0.00020132,2]
[402648673,1768744269484,-600.0,0.0002015,2]
[402648674,1768744269493,-977.22759688,0.0002015,69]
[402648675,1768744269502,-174.50492802,0.0002016,66]
[402648676,1768744269512,-500.0,0.00020196,2]
[402648677,1768744269521,-250.0,0.000202,10]
[402648678,1768744269531,-2148.0,0.00020211,2]
[402648679,1768744269541,-1367.0,0.00020211,2]
[402648680,1768744269550,-174.504928,0.00020212,66]
[402648681,1768744269560,-454.65002405,0.00020223,4]
[402648682,1768744269569,-500.0,0.00020274,2]
[402648683,1768744269579,-250.0,0.000203,10]
[402648684,1768744269588,-835.11265005,0.00020302,69]
[402648685,1768744269598,-250.0,0.000204,10]
[402648686,1768744269608,-606.20003207,0.00020412,4]
[402648687,1768744269618,-977.22759688,0.00020447,72]
[402648688,1768744269627,-200.0,0.00020486,120]
[402648689,1768744269640,-600.0,0.00020499,2]
[402648690,1768744269649,-250.0,0.000205,10]
[402648691,1768744269658,-5229.37,0.00020547,2]
[402648692,1768744269669,-500.0,0.00020548,2]
[402648693,1768744269678,-1215.752314,0.00020548,2]
[402648694,1768744269688,-600.0,0.00020553,2]
[402648695,1768744269697,-654.89431956,0.00020555,71]
[402648696,1768744269707,-209.18999324,0.00020555,71]
[402648697,1768744269716,-3000.0,0.00020566,7]
[402648698,1768744269725,-835.11265005,0.00020585,72]
[402648699,1768744269735,-6498.68,0.000206,2]
[402648700,1768744269744,-36319.38,0.000206,2]
[402648701,1768744269752,-250.0,0.000206,10]
[402648702,1768744269762,-1390.21685641,0.0002061,2]
[402648703,1768744269771,-250.0,0.000207,10]
[402648704,1768744269779,-977.22759688,0.00020745,76]
[402648705,1768744269789,-345.4,0.000208,2]
[402648706,1768744269798,-350.51,0.000208,2]
[402648707,1768744269808,-250.0,0.000208,10]
[402648708,1768744269818,-600.0,0.00020811,2]
[402648709,1768744269827,-500.0,0.00020822,2]
[402648710,1768744269839,-835.11265005,0.00020869,76]
[402648711,1768744269848,-256.6463004,0.000209,2]
[402648712,1768744269859,-151.0,0.000209,4]
[402648713,1768744269868,-250.0,0.000209,10]
[402648714,1768744269877,-307.5992852,0.00020998,2]
[402648715,1768744269889,-277.53215074,0.00021,2]
[402648716,1768744269899,-50000.0,0.00021,2]
[402648717,1768744269908,-167.87,0.00021,2]
[402648718,1768744269918,-400.0,0.00021,2]
[402648719,1768744269928,-1563.37612009,0.00021,10]
[402648720,1768744269937,-500.0,0.00021,20]
[402648721,1768744269947,-3000.0,0.00021,2]
[402648722,1768744269958,-250.0,0.00021,10]
[402648723,1768744269968,-3000.0,0.0002101,2]
[402648724,1768744269978,-3000.0,0.0002102,2]
[402648725,1768744269987,-3000.0,0.0002103,2]
[402648726,1768744269996,-194.46611918,0.00021036,79]
[402648727,1768744270005,-3000.0,0.0002104,2]
[402648728,1768744270015,-977.22759688,0.00021042,80]
[402648729,1768744270024,-3000.0,0.0002105,2]
[402648730,1768744270037,-3000.0,0.0002106,2]
[402648731,1768744270046,-167.62815371,0.00021068,30]
[402648732,1768744270057,-3000.0,0.0002107,2]
[402648733,1768744270067,-3000.0,0.0002108,2]
[402648734,1768744270079,-3000.0,0.0002109,2]
[402648735,1768744270089,-500.0,0.00021096,2]
[402648736,1768744270098,-1000.0,0.000211,2]
[402648737,1768744270108,-3000.0,0.000211,2]
[402648738,1768744270117,-250.0,0.000211,10]
[402648739,1768744270127,-3000.0,0.0002111,2]
[402648740,1768744270137,-3000.0,0.0002112,2]
[402648741,1768744270146,-654.89431956,0.00021128,79]
[402648742,1768744270155,-209.18999324,0.00021128,79]
[402648743,1768744270165,-3000.0,0.0002113,2]
[402648744,1768744270176,-500.0,0.00021136,2]
[402648745,1768744270187,-3000.0,0.0002114,2]
[402648746,1768744270196,-3000.0,0.0002115,2]
[402648747,1768744270206,-835.11265005,0.00021152,80]
[402648748,1768744270215,-3000.0,0.0002116,2]
[402648749,1768744270225,-3000.0,0.0002117,2]
[402648750,1768744270234,-167.62815371,0.00021178,30]
[402648751,1768744270243,-3000.0,0.0002118,2]
[402648752,1768744270253,-3000.0,0.0002119,2]
[402648753,1768744270263,-3000.0,0.000212,2]
[402648754,1768744270272,-3000.0,0.0002121,2]
[402648755,1768744270281,-3000.0,0.0002122,2]
[402648756,1768744270291,-3000.0,0.0002123,2]
[402648757,1768744270423,-3000.0,0.0002124,2]
[402648758,1768744270433,-3000.0,0.0002125,2]
[402648759,1768744270442,-3000.0,0.0002126,2]
[402648760,1768744270451,-3000.0,0.0002127,2]
[402648761,1768744270460,-3000.0,0.0002128,2]
[402648762,1768744270469,-167.62815371,0.00021288,30]
[402648763,1768744270478,-3000.0,0.0002129,2]
[402648764,1768744270487,-6498.68,0.000213,2]
[402648765,1768744270496,-36319.38,0.000213,2]
[402648766,1768744270505,-3000.0,0.000213,2]
[402648767,1768744270515,-3000.0,0.0002131,2]
[402648768,1768744270524,-3000.0,0.0002132,2]
[402648769,1768744270533,-3000.0,0.0002133,2]
[402648770,1768744270543,-977.22759688,0.00021339,83]
[402648771,1768744270552,-3000.0,0.0002134,2]
[402648772,1768744270561,-3000.0,0.0002135,2]
[402648773,1768744270570,-3000.0,0.0002136,2]
[402648774,1768744270579,-160.0,0.00021369,3]
[402648775,1768744270589,-500.0,0.0002137,2]
[402648776,1768744270598,-167.62815371,0.0002137,30]
[402648777,1768744270607,-3000.0,0.0002137,2]
[402648778,1768744270616,-3000.0,0.0002138,2]
[402648779,1768744270625,-3000.0,0.0002139,2]
[402648780,1768744270638,-3000.0,0.000214,2]
[402648781,1768744270649,-835.11265005,0.00021436,83]
[402648782,1768744270658,-500.0,0.0002146,2]
[402648783,1768744270668,-167.62815371,0.00021479,30]
[402648784,1768744270679,-1500.0,0.00021499,2]
[402648785,1768744270688,-1500.0,0.00021499,2]
[402648786,1768744270697,-2047.309079,0.00021499,2]
[402648787,1768744270706,-1040.56736977,0.000215,2]
[402648788,1768744270715,-12871.28091745,0.000215,2]
[402648789,1768744270724,-167.62815371,0.00021589,30]
[402648790,1768744270734,-977.22759688,0.00021636,87]